Cogmind - Beta 15 @@@ ROGUE MODE // 2025.08.31 @ 00:39:19 Player: puppuppit Result: Destroyed by 52-ICR(E) with Overtuned Barrage Gun Performance ------------- Evolutions (2) 1000 Regions Visited (11) 2200 Robots Destroyed (282) 1410 Value Destroyed (9492) 9492 Prototype IDs (36) 720 Alien Tech Used (0) 0 Bonus (2083) 2083 TOTAL SCORE: 16905 Bonus ------- High Alert Combat Kills 1399 Follower Combat Kills 748 Entered Garrisons 200 Aligned with FarCom 300 Friendly Fire -564 Cogmind --------- Core Integrity 0/550 Matter 114/300 Energy 38/100 System Corruption 0% Temperature Cool (43) Movement Treading (240) Ox1 Location -8/Scraptown Parts ------- > --- POWER (1) -------- (None) > --- PROPULSION (3) --- Light Treads Overtuned Titanium Leg > --- UTILITY (4) ------ Large Storage Unit Armor Integrity Analyzer > --- WEAPON (3) ------- Gauss Cannon Magnetic Acceleration Cannon > --- INVENTORY (15) --- Aerolev Unit Aerolev Unit Scrap Suit High-capacity Matter Pod (0) Improved Medium Armor Plating Advanced Assault Cannon Gauss Cannon Scatter Rocket Array Field Lobotomy Kit (5) Peak State ------------ > --- POWER ------------ Improved Deuterium Engine > --- PROPULSION ------- Advanced Treads Medium Treads > --- UTILITY ---------- Large Storage Unit Improved Targeting Computer Improved Targeting Computer > --- WEAPON ----------- AWS/Autocannon > --- INVENTORY -------- Light Fission Core Advanced Treads Advanced Treads Advanced Treads Cooling System High-capacity Matter Pod Compact Matter Pod Machine Analyzer Medium Armor Plating System Restoration Module Heavy Assault Rifle Heavy Assault Rifle Improved Light Cannon Improved Light Cannon Rocket Launcher [Rating: 49] Favorites ----------- Power Light Nuclear Core Engine Improved Deuterium Engine Power Core Light Nuclear Core Propulsion Advanced Treads Treads Advanced Treads Leg Overtuned Titanium Leg Hover Unit Aerolev Unit Utility Large Storage Unit Device Cooling System Storage Large Storage Unit Processor Improved Targeting Computer Hackware Hacking Suite Protection Light Armor Plating Weapon Improved Light Cannon Energy Gun Small Laser Ballistic Gun Light Assault Rifle Ballistic Cannon Improved Light Cannon Launcher Rocket Launcher Build | -11 -10 -10 -9 -9 -9 -8 -8 -8 -8 -8 -8 ------- Run | Yrd Mat Min Mat Min Exi Min Mat Sto Gar Rec Scr Slots Evolved 4 | . . . 2 . . . 2 . . . . Power . | . . . . . . . . . . . . Propulsion 1 | . . . . . . . 1 . . . . Utility 2 | . . . 1 . . . 1 . . . . Weapon 1 | . . . 1 . . . . . . . . Parts Attached 100 | 7 8 3 18 3 3 . 31 6 13 . 8 Power 17 | 1 2 2 1 1 . . 4 2 3 . 1 Engine 11 | 1 2 2 1 1 . . . 1 2 . 1 Core 6 | . . . . . . . 4 1 1 . . Reactor . | . . . . . . . . . . . . Propulsion 27 | 2 . . 6 1 1 . 8 2 3 . 4 Treads 25 | 2 . . 6 1 1 . 7 2 3 . 3 Leg 1 | . . . . . . . . . . . 1 Wheel . | . . . . . . . . . . . . Hover 1 | . . . . . . . 1 . . . . Flight . | . . . . . . . . . . . . Utility 29 | 2 3 . 7 . 1 . 10 1 3 . 2 Device 7 | 1 . . 1 . . . 4 . . . 1 Storage 7 | 1 2 . 1 . 1 . 2 . . . . Processor 5 | . 1 . 3 . . . . . 1 . . Hackware 8 | . . . 2 . . . 3 1 2 . . Protection 2 | . . . . . . . 1 . . . 1 Artifact . | . . . . . . . . . . . . Weapon 27 | 2 3 1 4 1 1 . 9 1 4 . 1 Energy Gun 1 | 1 . . . . . . . . . . . Energy Cannon . | . . . . . . . . . . . . Ballistic Gun 2 | 1 1 . . . . . . . . . . Ballistic Cannon 19 | . 2 . 2 1 1 . 8 . 4 . 1 Launcher 5 | . . 1 2 . . . 1 1 . . . Special Weapon . | . . . . . . . . . . . . Impact Weapon . | . . . . . . . . . . . . Slashing Weapon . | . . . . . . . . . . . . Piercing Weapon . | . . . . . . . . . . . . Special Melee Weapon . | . . . . . . . . . . . . Unidentified Prototypes 4 | . . . 1 . 1 . 1 1 . . . Parts Lost 27 | . 2 . . . . . 6 5 4 . 10 Power 6 | . 1 . . . . . . 2 1 . 2 Propulsion 9 | . . . . . . . 2 1 2 . 4 Utility 6 | . 1 . . . . . 2 1 . . 2 Weapon 6 | . . . . . . . 2 1 1 . 2 Highest Loss Streak 10 | . 1 . . . . . 2 1 2 . 10 To Critical Strikes 1 | . . . . . . . 1 . . . . Average Backups 14 | . 12 15 14 15 14 15 14 14 14 15 14 Power . | . . . . 1 1 1 1 1 1 1 . Propulsion 3 | . . 1 2 3 2 2 3 5 5 4 3 Utility 4 | . 5 6 5 5 5 6 4 3 3 5 4 Weapon 4 | . 6 8 6 5 4 5 4 3 3 4 3 Tool/Special . | . . . . . . . . . . . . Unused Backups 38 | . 6 1 7 2 2 . 6 . 5 . 9 Power 2 | . . . . . 1 . . . . . 1 Propulsion 6 | . . . 3 . . . . . 2 . 1 Utility 18 | . 3 1 3 . 1 . 3 . 2 . 5 Weapon 11 | . 3 . 1 2 . . 3 . 1 . 1 Tool/Special 1 | . . . . . . . . . . . 1 Average Slot Usage (%) 98 | . 97 100 99 100 99 100 98 99 99 90 97 Engine 6 | . 13 14 11 11 11 11 3 5 3 . . Core 3 | . . . . . . . 5 3 5 9 8 Treads 25 | . 27 28 22 22 22 22 25 27 27 27 26 Device 5 | . 3 . 2 . . . 4 14 12 . . Storage 10 | . 14 14 11 11 11 11 9 9 9 9 9 Processor 9 | . 8 14 11 22 22 22 11 . 3 9 9 Hackware 8 | . . . 7 . . . 9 12 11 18 16 Ballistic Gun 1 | . 10 . . . . . . . . . . Ballistic Cannon 26 | . 15 27 32 33 32 33 26 27 26 17 25 Peak Build Rating 49 | 9 11 11 25 27 49 28 39 40 42 41 44 Average Rating 29 | 7 9 10 22 24 27 28 33 37 38 36 41 On Entrance 23 | . 9 11 11 23 27 28 28 39 37 41 28 Naked Turns . | . . . . . . . . . . . . Heaviest Build 54 | 11 33 33 41 45 45 45 49 49 54 47 51 Greatest Support 72 | 40 40 40 45 50 50 50 72 64 64 60 68 Greatest Overweight (x) 1 | . . . . . . . . . . . 1 Average Overweight (x) . | . . . . . . . . . . . . Largest Inventory Capacity 15 | 8 15 15 15 15 15 15 15 15 15 15 15 Average Capacity 14 | 7 13 15 15 15 15 15 15 15 15 15 15 Most Carried 15 | 3 15 15 15 15 15 15 15 15 15 15 15 Average Carried 14 | . 12 15 14 14 14 15 14 14 14 15 14 Final Capacity 15 | 8 15 15 15 15 15 15 15 15 15 15 15 Final Carried 15 | 3 15 15 15 15 15 15 15 15 15 15 10 Class Distribution -------------------- 32% | Gunner 18% | Mutant 14% | Hacker-Skirmisher 13% | Skirmisher 10% | Commander-Skirmisher 5% | Commander-Gunner Dominant Class ---------------- Mutant | -10/Materials Mutant | -10/Mines Gunner | -9/Materials Gunner | -9/Mines Gunner | -9/Exiles Gunner | -8/Mines Gunner | -8/Materials Skirmisher | -8/Storage Commander-Skirmisher | -8/Garrison Commander-Skirmisher | -8/Recycling Commander-Gunner | -8/Scraptown Resources | -11 -10 -10 -9 -9 -9 -8 -8 -8 -8 -8 -8 ----------- Run | Yrd Mat Min Mat Min Exi Min Mat Sto Gar Rec Scr Matter Collected 9224 | 465 758 108 1419 102 10 41 3124 1268 1296 179 454 Remotely 416 | . . . 416 . . . . . . . . Salvage Created 8779 | 207 731 94 1433 154 . . 2225 1043 909 244 1739 Parts 479 | 14 44 14 98 1 . . 108 59 49 14 78 Haulers Intercepted 13 | . 1 . 6 . . . 4 2 . . . Recyclers Shooed 7 | 1 1 . . 1 . . 3 1 . . . Parts Field Recycled . | . . . . . . . . . . . . Retrieved Matter . | . . . . . . . . . . . . Parts Self-Destructed . | . . . . . . . . . . . . Prevented . | . . . . . . . . . . . . Kills | -11 -10 -10 -9 -9 -9 -8 -8 -8 -8 -8 -8 ------- Run | Yrd Mat Min Mat Min Exi Min Mat Sto Gar Rec Scr Combat Hostiles Destroyed 192 | . 15 5 36 . . . 52 23 22 4 35 Guns 11 | . 11 . . . . . . . . . . Cannons 125 | . 4 2 23 . . . 44 20 18 4 10 AOE 56 | . . 3 13 . . . 8 3 4 . 25 Classes Destroyed 23 | 3 6 . 4 . . . . . 4 . 6 Worker 17 | 2 1 . 5 . . . 4 5 . . . Builder 7 | . . . 2 . . . 5 . . . . Tunneler 5 | 3 . 1 1 . . . . . . . . Hauler 13 | . 1 . 6 . . . 4 2 . . . Recycler 23 | 1 2 . 4 2 . . 10 3 . 1 . Mechanic 3 | . 1 . 1 . . . . . 1 . . Operator 10 | . 1 . 5 . . . 3 1 . . . Watcher 11 | . 2 . 2 . . . 5 1 1 . . Swarmer 24 | . 5 3 5 . . . 7 3 1 . . Grunt 81 | . 10 2 23 . . . 32 10 4 . . Brawler 1 | . . . . . . . . . 1 . . Duelist 6 | . . . 1 . . . 4 . . . 1 Protector 1 | . . . 1 . . . . . . . . Sentry 39 | . . . 6 . . . 9 10 10 4 . Demolisher 1 | . . . . . . . . . 1 . . Specialist 1 | . . . . . . . . . 1 . . Hunter 5 | . . . . . . . . . 5 . . Federalist 3 | . . . . . . . . . . . 3 Explorer 5 | . . . . . . . . . . . 5 Ranger 2 | . . . . . . . . . . . 2 Guru 3 | . . . . . . . . . . . 3 Scrapper 12 | . . . . . . . . . . . 12 Elite 4 | . . . . . . . . . . . 4 Thug 3 | . . . . . . . . . . . 3 Savage 1 | . . . . . . . . . . . 1 Best Kill Streak 34 | 2 5 3 6 1 . . 8 4 4 1 34 Combat Bots Only 34 | . 5 3 5 . . . 6 3 4 1 34 Max Kills in Single Turn 9 | 1 1 3 3 1 . . 3 4 2 1 9 Gunslinging . | . . . . . . . . . . . . Exploded 9 | . . 3 3 . . . 3 3 2 . 9 Melee . | . . . . . . . . . . . . Uniques/NPCs Destroyed 1 | . . . . . . . . . . . 1 Triborg (-8/Scraptown) Combat | -11 -10 -10 -9 -9 -9 -8 -8 -8 -8 -8 -8 -------- Run | Yrd Mat Min Mat Min Exi Min Mat Sto Gar Rec Scr Hostile Shots Fired 623 | . 84 11 87 . . . 189 65 50 6 131 Missed 170 | . 17 4 30 . . . 45 18 6 1 49 Hits 453 | . 67 7 57 . . . 144 47 44 5 82 Melee 7 | . . . 1 . . . 6 . . . . Projectile 446 | . 67 7 56 . . . 138 47 44 5 82 AOE 1 | . . . . . . . . . 1 . . Critical Strikes 16 | . . . 1 . . . 9 2 . . 4 Damage Taken 7140 | . 641 93 771 . . . 2228 780 839 70 1718 Core 748 | . 115 18 57 . . . 243 56 52 . 207 Absorbed by Shields 145 | . . . . . . . 137 . . 3 5 Regen/Repaired (Parts) 642 | . 103 . 76 . . . 170 293 . . . Core Remaining (%) 77 | 100 . 46 . . . 85 . . . . . Volleys Fired 518 | 39 80 8 88 3 . . 150 65 51 9 25 Largest 3 | 2 2 2 3 3 . . 3 3 3 3 3 Hottest 130 | 60 66 66 99 106 . . 117 117 130 124 124 Shots Fired 1293 | 60 160 14 256 9 . . 396 173 139 27 59 Gun 174 | 60 114 . . . . . . . . . . Cannon 1087 | . 46 12 241 9 . . 388 172 137 27 55 Launcher 32 | . . 2 15 . . . 8 1 2 . 4 Special . | . . . . . . . . . . . . Kinetic 1219 | 39 139 12 241 9 . . 388 172 137 27 55 Thermal 42 | 21 21 . . . . . . . . . . Explosive 32 | . . 2 15 . . . 8 1 2 . 4 Electromagnetic . | . . . . . . . . . . . . Robot Hit Streak 16 | 6 9 3 10 5 . . 16 7 8 12 13 Robot Miss Streak 11 | 4 5 4 11 1 . . 6 4 5 3 5 Penetration Max 1 | . . . . . . . 1 . 1 . . Secondary Targets 2 | . 2 . . . . . . . . . . Max Gunslinging Chain 1 | . 1 . . . . . . . . . . Shots Hit Robots 714 | 37 96 6 129 5 . . 240 89 61 11 40 Core Hits 466 | 9 41 8 73 2 . . 148 42 45 6 92 Critical Kills . | . . . . . . . . . . . . Critical Parts Destroyed 2 | . 2 . . . . . . . . . . Critical Strikes 28 | . 3 . 2 . . . 11 5 4 . 3 Destroy 2 | . 2 . . . . . . . . . . Blast 26 | . 1 . 2 . . . 11 5 4 . 3 Melee Attacks . | . . . . . . . . . . . . Impact . | . . . . . . . . . . . . Slashing . | . . . . . . . . . . . . Piercing . | . . . . . . . . . . . . Sneak Attacks . | . . . . . . . . . . . . Combat Hostiles . | . . . . . . . . . . . . Follow-up Attacks . | . . . . . . . . . . . . Damage Inflicted 22251 | 364 1117 285 4170 116 . . 7410 2716 2265 425 3383 Guns 991 | 364 627 . . . . . . . . . . Cannons 15763 | . 490 180 3069 116 . . 6183 2473 1689 425 1138 Explosions 5497 | . . 105 1101 . . . 1227 243 576 . 2245 Melee . | . . . . . . . . . . . . Ramming . | . . . . . . . . . . . . Kinetic 16483 | 208 1002 180 3069 116 . . 6183 2473 1689 425 1138 Thermal 271 | 156 115 . . . . . . . . . . Explosive 5497 | . . 105 1101 . . . 1227 243 576 . 2245 Electromagnetic . | . . . . . . . . . . . . Impact . | . . . . . . . . . . . . Slashing . | . . . . . . . . . . . . Piercing . | . . . . . . . . . . . . Highest Corruption 1 | . . . . . . . 1 1 1 1 . Average Corruption 1 | . . . . . . . 1 1 1 1 . Corruption Purged . | . . . . . . . . . . . . Corruption Blocked . | . . . . . . . . . . . . Effects 71 | . . . . . . . 29 14 18 10 . Message Errors 15 | . . . . . . . 8 . 3 4 . Matter Fused 17 | . . . . . . . 5 3 8 1 . Heat Flow Errors 11 | . . . . . . . 2 4 3 2 . Energy Discharges 11 | . . . . . . . 7 2 1 1 . Parts Rejected 2 | . . . . . . . 1 . 1 . . Parts Fused 1 | . . . . . . . 1 . . . . Data Loss (minor) 6 | . . . . . . . 3 1 1 1 . Data Loss (major) 3 | . . . . . . . 1 1 . 1 . Misfires 2 | . . . . . . . . 2 . . . Alerts 3 | . . . . . . . 1 1 1 . . Overload Shots . | . . . . . . . . . . . . Overflow Damage 386 | . 21 . 79 2 . . 140 62 18 14 50 Projectiles 191 | . 21 . 32 2 . . 76 28 18 14 . Explosions 195 | . . . 47 . . . 64 34 . . 50 Melee . | . . . . . . . . . . . . Knockbacks 119 | . 4 1 13 2 . . 58 20 12 3 6 Impact . | . . . . . . . . . . . . Kinetic 114 | . 4 1 13 2 . . 55 20 12 3 4 Secondary 5 | . . . . . . . 3 . . . 2 Self-Inflicted Damage 513 | . . 20 32 . . . 36 95 24 . 306 Shots 20 | . . 1 1 . . . 1 2 1 . 14 Rammed . | . . . . . . . . . . . . Targets Rammed . | . . . . . . . . . . . . Kicked . | . . . . . . . . . . . . Crushed . | . . . . . . . . . . . . Highest Temperature 371 | 60 122 48 224 63 . . 371 291 218 205 295 Average Temperature 59 | 25 32 22 56 28 . . 73 59 36 50 106 Received Heat Transfer 2938 | . 204 18 333 . . . 1169 315 252 25 622 Siege Activations . | . . . . . . . . . . . . Martial Activations . | . . . . . . . . . . . . Shielding Activations . | . . . . . . . . . . . . Robots Disrupted . | . . . . . . . . . . . . Combat Hostiles . | . . . . . . . . . . . . Robots Corrupted . | . . . . . . . . . . . . Combat Hostiles . | . . . . . . . . . . . . Parts Fried 1 | . . . . . . . . . . . 1 Impact Corruptions . | . . . . . . . . . . . . Robots Melted . | . . . . . . . . . . . . Combat Hostiles . | . . . . . . . . . . . . Parts Melted 2 | . . . . . . . . . . . 2 Heat Transferred 600 | 350 250 . . . . . . . . . . Parts Sabotaged . | . . . . . . . . . . . . Parts Stolen . | . . . . . . . . . . . . Parts Stripped . | . . . . . . . . . . . . Power Chain Reactions . | . . . . . . . . . . . . Alert | -11 -10 -10 -9 -9 -9 -8 -8 -8 -8 -8 -8 ------- Run | Yrd Mat Min Mat Min Exi Min Mat Sto Gar Rec Scr Maximum Alert Level 5 | . . . 3 2 . . 3 2 5 3 . Low Security (%) 27 | 100 100 100 16 . . 100 18 . . . . Level 1 14 | . . . 8 83 . . 26 36 3 . . Level 2 34 | . . . 48 16 . . 45 63 22 44 . Level 3 15 | . . . 26 . . . 9 . 25 55 . Level 4 5 | . . . . . . . . . 35 . . Level 5 2 | . . . . . . . . . 13 . . High Security . | . . . . . . . . . . . . Max Security . | . . . . . . . . . . . . Sterilizations 1 | . . . . . . . 1 . . . . Peak Influence 1985 | 10 108 126 1077 417 . . 781 550 1985 921 . Initial 892 | . . 36 12 417 . . . 271 352 892 . Average 471 | 1 31 25 537 364 . . 400 411 1055 691 . Influence Increases 7167 | 30 579 159 1752 12 . . 1763 926 1733 213 . Destroy 0b10 Robot/C 3580 | . 300 100 900 . . . 1040 460 680 100 . Destroy 0b10 Robot/NC 465 | 30 40 5 140 10 . . 155 60 15 10 . Destroy Leader 730 | . 66 20 250 . . . 218 156 20 . . Allied During Kill 374 | . . 14 162 . . . . . 125 73 . Successful Hack 195 | . 61 . 23 . . . 45 31 20 15 . Select Force Hacks 180 | . 60 . 90 . . . 30 . . . . Disable Machine 270 | . . . 60 . . . 60 135 15 . . Anti-Garrison Action 800 | . . . . . . . . . 800 . . Destroy Structure 438 | . 7 20 112 2 . . 155 69 58 15 . Lose Combat Pursuer 135 | . 45 . 15 . . . 60 15 . . . Influence Decreases 7167 | 30 486 219 714 764 319 . 1121 1025 291 1749 449 Entered New Map 3155 | . . 57 21 654 319 . . 371 191 1093 449 Time Decay 3129 | 30 473 162 633 110 . . 611 604 . 506 . Lost Part 163 | . 13 . . . . . 60 50 40 . . Lost Ally 120 | . . . 60 . . . . . 60 . . Purge Threat 600 | . . . . . . . 450 . . 150 . Squads Dispatched 33 | . 4 . 14 1 . . 8 6 . . . Investigation 17 | . 2 . 9 1 . . 2 3 . . . Extermination . | . . . . . . . . . . . . Reinforcement 10 | . 2 . 2 . . . 4 2 . . . Assault 5 | . . . 3 . . . 2 . . . . Garrison 1 | . . . . . . . . 1 . . . Intercept . | . . . . . . . . . . . . Searches Triggered . | . . . . . . . . . . . . Construction Impeded 2 | . . . . . . . 2 . . . . Haulers Reinforced . | . . . . . . . . . . . . Active Scanning Responses . | . . . . . . . . . . . . Cargo Convoy Interrupts . | . . . . . . . . . . . . Stealth | -11 -10 -10 -9 -9 -9 -8 -8 -8 -8 -8 -8 --------- Run | Yrd Mat Min Mat Min Exi Min Mat Sto Gar Rec Scr Distress Signals 9 | . 2 . 3 . . . 4 . . . . Communications Jammed . | . . . . . . . . . . . . Distress Signals . | . . . . . . . . . . . . Times Spotted 265 | . 27 5 52 . . . 71 23 27 2 58 Peak Tracking Total 29 | . 4 3 5 . . . 6 3 4 1 29 Tactical Retreats 11 | . 2 . 1 . . . 3 1 . . 4 Traps | -11 -10 -10 -9 -9 -9 -8 -8 -8 -8 -8 -8 ------- Run | Yrd Mat Min Mat Min Exi Min Mat Sto Gar Rec Scr Traps Triggered 7 | . . . . . . . 1 2 4 . . Indirectly . | . . . . . . . . . . . . Trap Hack Attempts . | . . . . . . . . . . . . Triggered . | . . . . . . . . . . . . Disarmed . | . . . . . . . . . . . . Reprogrammed . | . . . . . . . . . . . . Reused . | . . . . . . . . . . . . Traps Extracted . | . . . . . . . . . . . . Installed . | . . . . . . . . . . . . Triggered . | . . . . . . . . . . . . Machines | -11 -10 -10 -9 -9 -9 -8 -8 -8 -8 -8 -8 ---------- Run | Yrd Mat Min Mat Min Exi Min Mat Sto Gar Rec Scr Machines Disabled 29 | . . . 4 2 . . 4 9 8 . 2 Max in Single Turn 1 | . . . 1 1 . . 1 1 1 . 1 Garrison Access 1 | . . . . . . . 1 . . . . Garrison Relay 4 | . . . . . . . . . 4 . . Phase Generator 1 | . . . . . . . . . 1 . . Machines Repaired . | . . . . . . . . . . . . Machines Dismantled . | . . . . . . . . . . . . Machines Sabotaged . | . . . . . . . . . . . . Overloaded Fab Kills . | . . . . . . . . . . . . Hacking | -11 -10 -10 -9 -9 -9 -8 -8 -8 -8 -8 -8 --------- Run | Yrd Mat Min Mat Min Exi Min Mat Sto Gar Rec Scr Machines Accessed 69 | . 10 . 15 1 5 . 17 9 4 8 . Terminals 42 | . 7 . 9 . . . 10 6 4 6 . Fabricators . | . . . . . . . . . . . . Repair Stations 6 | . 1 . 2 . . . 2 1 . . . Recycling Units 9 | . 2 . 2 . . . 2 1 . 2 . Scanalyzers 4 | . . . 2 . . . 2 . . . . Garrison Access 2 | . . . . . . . 1 1 . . . Total Hacks 240 | . 30 . 50 1 28 . 66 34 9 22 . Successful 179 | . 20 . 36 1 28 . 53 23 4 14 . Failed 57 | . 9 . 14 . . . 12 10 5 7 . Catastrophic 8 | . 2 . 1 . . . 2 1 2 . . Database Lockouts 4 | . 1 . . . . . 1 1 . 1 . Manual 161 | . 27 . 38 . 1 . 41 26 3 25 . Terminals 146 | . 25 . 35 . . . 37 21 9 19 . Fabricators . | . . . . . . . . . . . . Repair Stations 15 | . 2 . 2 . . . 5 6 . . . Recycling Units 19 | . 3 . 5 . . . 6 2 . 3 . Scanalyzers 25 | . . . 8 . . . 17 . . . . Garrison Access 6 | . . . . . . . 1 5 . . . Terminal Hacks 62 | . 2 . 12 1 28 . 8 5 3 3 . Record 27 | . . . . . 27 . . . . . . Part Schematic 2 | . . . . . . . . 2 . . . Robot Analysis 10 | . 1 . 5 . . . 2 1 . 1 . Prototype ID Bank 6 | . . . 5 . . . 1 . . . . Open Door 3 | . . . . 1 . . . 1 1 . . Emergency Access Points 1 | . . . . . . . . . 1 . . Terminal Index 4 | . 1 . 1 . . . 1 1 . . . Unreport Threat 4 | . . . . . . . 3 . . 1 . Recall Investigation 1 | . . . 1 . . . . . . . . Zone Layout 2 | . . . . . . . 1 . . 1 . Garrison Registry 1 | . . . . . . . . . 1 . . Proto ID Catalog 1 | . . . . . 1 . . . . . . Fabricator Hacks . | . . . . . . . . . . . . Repair Station Hacks 10 | . 2 . . . . . 4 4 . . . Scan Component 5 | . 1 . . . . . 2 2 . . . Repair 5 | . 1 . . . . . 2 2 . . . Recycling Unit Hacks 1 | . . . . . . . 1 . . . . Retrieve Components 1 | . . . . . . . 1 . . . . Scanalyzer 21 | . . . 5 . . . 16 . . . . Insert Component 9 | . . . 2 . . . 7 . . . . Analyze 12 | . . . 3 . . . 9 . . . . Garrison Access Hacks 2 | . . . . . . . 1 1 . . . Unlock Access 1 | . . . . . . . . 1 . . . Seal Access 1 | . . . . . . . 1 . . . . Unauthorized Hacks 83 | . 16 . 19 . . . 23 13 1 11 . Terminals 61 | . 14 . 12 . . . 18 8 1 8 . Track 1 | . 1 . . . . . . . . . . Assimilate 3 | . 1 . 1 . . . 1 . . . . Botnet 24 | . 5 . 5 . . . 7 3 1 3 . Operators 2 | . 1 . 1 . . . . . . . . Skim 31 | . 6 . 5 . . . 10 5 . 5 . Fabricators . | . . . . . . . . . . . . Repair Stations 3 | . . . 2 . . . . 1 . . . Patch 3 | . . . 2 . . . . 1 . . . Recycling Units 15 | . 2 . 4 . . . 4 2 . 3 . Reject 3 | . . . 1 . . . 1 1 . . . Recyclers 3 | . . . 1 . . . 1 . . 1 . Mask 5 | . . . . . . . 2 1 . 2 . Tunnel 4 | . 2 . 2 . . . . . . . . Scanalyzers 2 | . . . 1 . . . 1 . . . . Extract 2 | . . . 1 . . . 1 . . . . Garrison Access 2 | . . . . . . . . 2 . . . Reprogram 1 | . . . . . . . . 1 . . . Intercept 1 | . . . . . . . . 1 . . . Data Cores Recovered 2 | . . . 1 . . . 1 . . . . Used 1 | . . . 1 . . . . . . . . Hacking Detections 52 | . 9 . 11 . . . 14 8 3 7 . Full Trace Events 7 | . 1 . 4 . . . 1 . 1 . . Feedback Events . | . . . . . . . . . . . . Feedback Blocked . | . . . . . . . . . . . . Robot Schematics Acquired . | . . . . . . . . . . . . Robots Built . | . . . . . . . . . . . . Authchips . | . . . . . . . . . . . . Time . | . . . . . . . . . . . . Total Robot Build Rating . | . . . . . . . . . . . . Part Schematics Acquired 15 | . . . 2 . . . 11 2 . . . Parts Built . | . . . . . . . . . . . . Authchips . | . . . . . . . . . . . . Time . | . . . . . . . . . . . . Total Part Build Rating . | . . . . . . . . . . . . Parts Repaired 5 | . 1 . . . . . 2 2 . . . Time 190 | . 26 . . . . . 88 76 . . . Parts Recycled . | . . . . . . . . . . . . Recycled Matter . | . . . . . . . . . . . . Retrieved Matter . | . . . . . . . . . . . . Retrieved Components 1 | . . . . . . . 1 . . . . Parts Scanalyzed 8 | . . . 2 . . . 6 . . . . Part Schematics Acquired 8 | . . . 1 . . . 7 . . . . Parts Damaged 1 | . . . . . . . 1 . . . . Bothacking | -11 -10 -10 -9 -9 -9 -8 -8 -8 -8 -8 -8 ------------ Run | Yrd Mat Min Mat Min Exi Min Mat Sto Gar Rec Scr Used RIF Installer . | . . . . . . . . . . . . Robots Hacked . | . . . . . . . . . . . . Non-combat . | . . . . . . . . . . . . Combat . | . . . . . . . . . . . . Robot Hacks Applied . | . . . . . . . . . . . . Relay Couplers Released 17 | . . . . . . . . . 17 . . Machine Destruction 17 | . . . . . . . . . 17 . . Fabnet Peak Effective % . | . . . . . . . . . . . . Robots Rewired 18 | . . . . . . . . . 7 11 . Allies Hacked . | . . . . . . . . . . . . Hacks Repelled . | . . . . . . . . . . . . Allies | -11 -10 -10 -9 -9 -9 -8 -8 -8 -8 -8 -8 -------- Run | Yrd Mat Min Mat Min Exi Min Mat Sto Gar Rec Scr Total Allies 26 | . . 4 1 . . . . 3 7 11 . Largest Group 16 | . . 4 4 . . . . 3 5 16 16 Highest-Rated Group 322 | . . 71 71 . . . . 48 139 322 322 Highest-Rated Ally 39 | . . 31 31 . . . . 16 39 39 39 Initial Warlord ECA Mod 18 | . . . . . . . . . . 9 9 Total Orders 11 | . . . 2 . . . . . . 2 7 STAY 4 | . . . 1 . . . . . . . 3 FOLLOW 5 | . . . 1 . . . . . . 1 3 DROP 1 | . . . . . . . . . . . 1 COLLECT 1 | . . . . . . . . . . 1 . Ally Attacks 181 | . . 2 76 . . . . . 51 4 48 Total Damage 3231 | . . . 828 . . . . . 858 51 1494 Kills 34 | . . . 12 . . . . . 13 1 8 Allies Corrupted . | . . . . . . . . . . . . Allies Melted . | . . . . . . . . . . . . Intel | -11 -10 -10 -9 -9 -9 -8 -8 -8 -8 -8 -8 ------- Run | Yrd Mat Min Mat Min Exi Min Mat Sto Gar Rec Scr Active Infowar (turns) 692 | 204 488 . . . . . . . . . . Terrain 692 | 204 488 . . . . . . . . . . Robot Analysis Total 10 | . 1 . 5 . . . 2 1 . 1 . Derelict Logs Recovered 1 | . . 1 . . . . . . . . . Drone Launches . | . . . . . . . . . . . . Drone Recoveries . | . . . . . . . . . . . . Exploration | -11 -10 -10 -9 -9 -9 -8 -8 -8 -8 -8 -8 ------------- Run | Yrd Mat Min Mat Min Exi Min Mat Sto Gar Rec Scr Turns Passed 17923 | 241 2095 839 2540 237 866 74 4126 1947 2409 1363 1186 Spaces Moved 9589 | 87 1067 506 1470 148 556 48 2144 1028 1379 508 648 Core 2 | 2 . . . . . . . . . . . Treads 9587 | 85 1067 506 1470 148 556 48 2144 1028 1379 508 648 Legs . | . . . . . . . . . . . . Wheels . | . . . . . . . . . . . . Hover . | . . . . . . . . . . . . Flight . | . . . . . . . . . . . . Fastest Speed 50 | 50 160 160 145 145 152 152 145 150 150 163 160 Average Speed 154 | 157 160 160 146 146 152 152 151 153 157 163 163 Slowest Speed 240 | 160 160 160 160 152 152 152 155 158 163 163 240 Overloaded Moves . | . . . . . . . . . . . . Propulsion Burnouts . | . . . . . . . . . . . . Robots Hopped . | . . . . . . . . . . . . Potential Cave-ins 4 | . . . . . . . 4 . . . . Cave-ins Triggered . | . . . . . . . . . . . . Exploration Rate (%) 68 | 5 95 84 94 28 79 17 92 85 95 93 53 Regions Visited 11 Branch Regions 7 Pre-discovered Areas 15 | . 2 3 3 . 1 . . 4 . 2 . Known Exits Taken 8 | . 1 1 1 . 1 1 1 1 . 1 . Unknown Exits Taken 2 | 1 . . . 1 . . . . . . . Scrap Searched 4 | . . 1 . . . 1 . . . . 2 Spaces Dug 73 | . . . 4 . . . 22 7 40 . . Terrain Destroyed 543 | . 2 20 127 3 . . 162 71 124 16 18 Melee . | . . . . . . . . . . . . Projectile 189 | . 2 . 17 3 . . 93 51 1 16 6 AOE 354 | . . 20 110 . . . 69 20 123 . 12 Terrain Rammed . | . . . . . . . . . . . . Walls Destroyed . | . . . . . . . . . . . . Machines Disabled . | . . . . . . . . . . . . Actions | -11 -10 -10 -9 -9 -9 -8 -8 -8 -8 -8 -8 --------- Run | Yrd Mat Min Mat Min Exi Min Mat Sto Gar Rec Scr Total 11714 | 135 1324 522 1663 161 582 49 2708 1283 1532 1026 729 Wait 1107 | . 135 1 42 . . 2 293 166 6 436 26 Move 9578 | 86 1066 505 1469 147 555 47 2143 1027 1378 507 648 Hop . | . . . . . . . . . . . . Pick Up 91 | 3 20 1 14 1 8 . 22 4 12 1 5 Fast Attach 45 | 7 5 . 2 . 4 . 13 5 4 . 5 Attach 22 | . . . 3 . . . 8 3 3 . 5 Detach 13 | . 2 . 3 . . . 5 1 . . 2 Swap 109 | . 4 4 24 6 2 . 40 10 13 . 6 Drop 112 | . 12 3 18 4 13 . 34 2 15 4 7 Fire 518 | 39 80 8 88 3 . . 150 65 51 9 25 Melee . | . . . . . . . . . . . . Ram . | . . . . . . . . . . . . Kick . | . . . . . . . . . . . . Crush . | . . . . . . . . . . . . Escape Stasis . | . . . . . . . . . . . . Rewire 119 | . . . . . . . . . 50 69 . Trap . | . . . . . . . . . . . . Miscellaneous . | . . . . . . . . . . . . Route ------- -11/Scrapyard -10/Materials (discovered 5 exits: *Mat x3 / *Min / Sub) -10/Mines (discovered 3 exits: *Mat x2 / *Sub) -9/Materials (discovered 4 exits: *Mat x3 / *Min) -9/Mines -9/Exiles -8/Mines -8/Materials (discovered 4 exits: *Fac x3 / *Sto) -8/Storage (discovered 3 exits: *Fac / Rec / Gar) -8/Garrison (discovered 3 exits: *Rec x3) -8/Recycling (discovered 2 exits: *Fac / *Scr) -8/Scraptown (discovered 2 exits: *Fac x2) History --------- Turn | Location | Event 15 | -11/Scrapyard | Discovered new exit (range 16) 242 | -11/Scrapyard | Entered Materials 300 | -10/Materials | Build established: Mutant 343 | -10/Materials | Central database locked down 538 | -10/Materials | Discovered new exit (range 4) 917 | -10/Materials | Discovered new exit (range 9) 1397 | -10/Materials | Discovered new exit (range 3) 1484 | -10/Materials | Discovered new exit (range 12) 1783 | -10/Materials | Repaired Lgt. Treads 1788 | -10/Materials | Identified exit to Subcaves 1927 | -10/Materials | Learned location of 2 exits from Subcaves 1954 | -10/Materials | Learned location of 1 exit from Storage 1972 | -10/Materials | Learned location of 2 exits from Mines 1980 | -10/Materials | Learned Storage stockpile data 2020 | -10/Materials | Learned location of 1 exit from Recycling 2053 | -10/Materials | Learned location of 2 exits from Materials 2095 | -10/Materials | Identified exit to Mines 2095 | -10/Materials | Identified exit to Materials 2337 | -10/Materials | Entered Mines 2340 | -10/Mines | Core integrity fell below 50% 2344 | -10/Mines | Escorted by a lone wolf Derelict 2346 | -10/Mines | Met a Derelict bent on vengeance 2364 | -10/Mines | Learned location of Storage (-8) 2773 | -10/Mines | Assisted by bots powering up and referring to "LRC-V3" 3176 | -10/Mines | Entered Materials 3176 | -9/Materials | Accompanied by 4 allies 3176 | -9/Materials | Evolved 2 slots: Utility x1, Weapon x1 3177 | -9/Materials | Identified exit to Mines 3178 | -9/Materials | Identified exit to Materials 3522 | -9/Materials | Build established: Gunner 3596 | -9/Materials | Discovered exit to Materials (range 11) 4391 | -9/Materials | Build established: Hacker-Gunner 4505 | -9/Materials | Learned Storage stockpile data 4526 | -9/Materials | Loaded intel: 9 trap records 4538 | -9/Materials | Loaded intel: 2 repair station locations 4539 | -9/Materials | Learned location of Recycling (-8) 4548 | -9/Materials | Loaded intel: 2 recycling unit locations 4740 | -9/Materials | Build established: Gunner 4776 | -9/Materials | First assault squad dispatched 5716 | -9/Materials | Entered Mines 5871 | -9/Mines | Met a Derelict shopkeep closing up shop 5944 | -9/Mines | Deemed a non-threat by the Exiles lab entrance 5945 | -9/Mines | Discovered new exit (range 5) 5953 | -9/Mines | Entered Exiles 5954 | -9/Exiles | Identified exit to Mines 5993 | -9/Exiles | Met 8R-AWN 6017 | -9/Exiles | Met EX-HEX 6083 | -9/Exiles | Met EX-BIN 6107 | -9/Exiles | Met EX-DEC 6112 | -9/Exiles | Learned location of Zion (-6) 6172 | -9/Exiles | Visited The Gauntlet 6498 | -9/Exiles | Aligned with FarCom system 6500 | -9/Exiles | Given EX-Vault access code 6565 | -9/Exiles | Opened EX-Vault 6573 | -9/Exiles | Found Prototype Ballistic Cannon 6573 | -9/Exiles | Identified AWS/Autocannon 6596 | -9/Exiles | Found Field Lobotomy Kit 6635 | -9/Exiles | Warned to stay clear of 0b10 Research branches 6819 | -9/Exiles | Left Exiles lab with Field Lobotomy Kit 6819 | -9/Exiles | Entered Mines 6885 | -8/Mines | Discovered exit to Materials (range 8) 6893 | -8/Mines | Entered Materials 6893 | -8/Materials | Evolved 2 slots: Propulsion x1, Utility x1 6894 | -8/Materials | Identified exit to Storage 8023 | -8/Materials | Repaired Imp. Deuterium Engine 8131 | -8/Materials | Discovered new exit (range 8) 8134 | -8/Materials | Central database locked down 8918 | -8/Materials | Learned 2 Storage zone layouts 8949 | -8/Materials | Identified exit to Factory 8979 | -8/Materials | Learned location of 2 exits from Lower Caves 8980 | -8/Materials | Learned location of 2 exits from Factory 9018 | -8/Materials | Learned 4 Lower Caves zone layouts 9039 | -8/Materials | Repaired Gauss Cannon? 9693 | -8/Materials | First assault squad dispatched 9814 | -8/Materials | Build established: Hacker-Skirmisher 10854 | -8/Materials | Sterilization system engaged 10854 | -8/Materials | Non-combat units ordered to evacuate 10944 | -8/Materials | Learned location of 2 exits from Factory 10954 | -8/Materials | Combat units ordered to evacuate 11019 | -8/Materials | Entered Storage 11020 | -8/Storage | Identified exit to Recycling 11086 | -8/Storage | Garrison activated, responded to threat 11096 | -8/Storage | Build established: Skirmisher 11643 | -8/Storage | Core integrity fell below 50% 11872 | -8/Storage | Build established: Hacker-Skirmisher 12051 | -8/Storage | Found Prototype Launcher 12061 | -8/Storage | Identified Scatter Rocket Array 12119 | -8/Storage | Central database locked down 12318 | -8/Storage | Learned location of Lower Caves (-6) 12420 | -8/Storage | Learned Factory scanalyzer intel 12474 | -8/Storage | Learned location of 1 exit from Recycling 12548 | -8/Storage | Repaired Cooling System 12594 | -8/Storage | Repaired Gauss Cannon 12650 | -8/Storage | Build established: Skirmisher 12881 | -8/Storage | Identified exit to Garrison 12966 | -8/Storage | Entered Garrison 12966 | -8/Garrison | Accompanied by 3 allies 13036 | -8/Garrison | Triggered checkpoint 13038 | -8/Garrison | Triggered checkpoint 13039 | -8/Garrison | Triggered checkpoint 13309 | -8/Garrison | Phase Generator disabled 13698 | -8/Garrison | Triggered checkpoint 13894 | -8/Garrison | Triggered checkpoint 13900 | -8/Garrison | Garrison Relay disabled 14038 | -8/Garrison | Triggered checkpoint 14099 | -8/Garrison | Garrison Relay disabled 14138 | -8/Garrison | Discovered exit to Recycling (range 14) 14301 | -8/Garrison | Build established: Commander-Skirmisher 14418 | -8/Garrison | Triggered checkpoint 14810 | -8/Garrison | Discovered exit to Recycling (range 68) 14810 | -8/Garrison | Discovered exit to Recycling (range 12) 14810 | -8/Garrison | Discovered exit to Recycling (range 29) 14886 | -8/Garrison | Triggered checkpoint 14907 | -8/Garrison | Garrison Relay disabled 14945 | -8/Garrison | Build established: Hacker-Skirmisher 15050 | -8/Garrison | Garrison Relay disabled 15375 | -8/Garrison | Entered Recycling 15375 | -8/Recycling | Accompanied by 5 allies 15376 | -8/Recycling | Identified exit to Factory 15377 | -8/Recycling | Identified exit to Scraptown 15418 | -8/Recycling | Build established: Commander-Skirmisher 16194 | -8/Recycling | Scanned before Scraplab entrance 16208 | -8/Recycling | Learned 4 Factory zone layouts 16346 | -8/Recycling | Learned Storage emergency access door positions 16401 | -8/Recycling | Learned Factory trap positions 16476 | -8/Recycling | Learned location of 1 exit from Extension 16572 | -8/Recycling | Build established: Commander-Mutant 16681 | -8/Recycling | Entered Scraplab 16738 | -8/Recycling | Entered Scraptown 16738 | -8/Scraptown | Accompanied by 16 allies 16738 | -8/Scraptown | System corruption cleaned by C-Scrubber 17045 | -8/Scraptown | Build established: Commander-Gunner 17317 | -8/Scraptown | Visited Symbiants 17340 | -8/Scraptown | Visited Red Mages 17389 | -8/Scraptown | Visited Awakened 17555 | -8/Scraptown | Turned away by UFD registrar 17593 | -8/Scraptown | Visited Fellowship of the Rings 17795 | -8/Scraptown | Attacked by Scraptown defenders 17804 | -8/Scraptown | Destroyed Triborg 17851 | -8/Scraptown | Lost 15 allies 17878 | -8/Scraptown | Core integrity fell below 20% 17904 | -8/Scraptown | Found Scrap Suit 17908 | -8/Scraptown | Destroyed 34 combat bots 17924 | -8/Scraptown | Destroyed by 52-ICR(E) with Overtuned Barrage Gun Last Messages --------------- 17887_ JQ-IN5(j) destroyed. 17887_ DA-FNB(p) destroyed. 17890_ Acquired Hcp. Matter Pod. 17898_ Acquired Ovr. Titanium Leg. 17900_ The unstable cave ceiling collapses. 17904_ Acquired Scrap Suit. 17905_ Acquired 24 matter. 17906_ Critical hit (Burn: +50). 17907_ A3-NMS(j): "If it isn't public enemy #1: the new Wanderer!" 17908_ RI-IPC(j) heat damages Mak. Microdissipator Network. 17909_ Gauss Cannon destroyed. 17911_ Acquired Lgt. Deuterium Engine. 17911_ Weapon Cycler destroyed. 17911_ Lgt. Deuterium Engine destroyed. 17916_ The unstable cave ceiling collapses. 17921_ Slug penetrates Reinforced Barrier. 17921_ Med. Treads destroyed. 17923_ Critical hit (Burn: +50). Map ----- +----------------------------------------------------+ | #??????# " " ##????????????????????????????? | | #??????? "#????????????????????????????? | | #??????? #????????????????????????????? | | #???????? #????????????????????????????? | | #????????? #????????????????????????????? | | #????????? #????????????????????????????? | | #?????????? ?????????????????????????????? | | ################# ####???????????????????????????? | | #???????????????????????????? | | #???????????????????????????? | | #???????????????????????????? | | % #???????????????????????????? | | / #???????????????????????????? | | ############ #???????????????????????????? | | ??????????## #???????????????????????????? | | ???????????" #???????????????????????????? | | ???????????# #???????????????????????????? | | ???????????# #??????????????"????????????? | | ??????????# %* #???????????? "????????????? | | "??????????# ! * ###????????? ""???????????? | | ""????????## %% [!""#"#??????? ""???????????? | | ""????????# = !%""""#?????? ""# ?????????? | | ""????????# ==!""###????? "" ????????? | | "" #????? # * !% ###??????" " ?????????? | | #???? ! % /!=#########"E ""#??????????? | | " #???? % ==&% % j ! @ E% ""#??????????? | | """???? *%= !== j%= EE ""#??????????? | | ##???????# ![=%! !=! ="""" ""#??????????? | | ?????????###!=[ % ! "??? #??????????? | | ########## !% = ! [= "???? ""#??????????? | | !!%! = %= "???? """??????????? | | %**= %= "????? """??????????? | | [= "????? ??????????? | | % "?????? ??????????? | | ! "?????? ????????? | | #"??????? ????????? | | #???????? ?????????? | | % #?????????"" """?????????? | | ############## ##" ####?????????#? #???????????? | | ???????????? "# #???????????????????????????? | | ?????????? "# #???????????????????????????? | | ????????" "# #???????????????????????????? | | ""?????#" """ "# #???????????????????????????? | | "??????#" """ "# #???????????????????????????? | | "?????#" """ "# #???????????????????????????? | | ""#????#" "# #???????????????????????????? | | ""?????#" ? "# #???????????????????????????? | | ""?????#"????""""# #???????????????????????????? | | #"???????????##### #???????????????????????????? | | ?????????????????# #???????????????????????????? | +----------------------------------------------------+ Best States ------------- Heat Dissipation 53 Energy Generation 16 Energy Capacity 290 Matter Stores 408 Matter Capacity 450 Sight Range 16 Terrain Scan Range 16 Terrain Scan Density 10 Armor Coverage 225 Weapon Cycling 15 Evasion (%) 40 Targeting Accuracy 12 Armor Integrity Analysis 30 Recoil Reduction 7 Offensive Hacking 24 Defensive Hacking 10 Authchip Count 1 Item Schematics ----------------- Imp. Light Cannon | -9/Materials | Scanalyzed Med. Storage Unit | -9/Materials | Extracted Gauss Cannon | -8/Materials | Scanalyzed Recoil Stabilizer | -8/Materials | Scanalyzed Lgt. Fission Core | -8/Materials | Scanalyzed System Restoration Module | -8/Materials | Scanalyzed Aerolev Unit | -8/Materials | Scanalyzed Missile Launcher | -8/Materials | Scanalyzed Cooling System | -8/Materials | Scanalyzed Salvage Targeting Computer | -8/Materials | Extracted Machine Analyzer | -8/Materials | Extracted Imp. Utility Shielding | -8/Materials | Extracted Particle Cannon | -8/Materials | Extracted Weapon Cycler | -8/Storage | Hacked Plasma Cutter | -8/Storage | Hacked Robot Schematics ------------------ None Fabricated ------------ Nothing Repaired ---------- Lgt. Treads | 26% | -10/Materials Imp. Deuterium Engine | 21% | -8/Materials Gauss Cannon | 37% | -8/Materials Cooling System | 2% | -8/Storage Gauss Cannon | 10% | -8/Storage Alien Tech Used ----------------- None Achievements -------------- None Challenges ------------ None Game ------ Seed MetafieldNavigationBank Manual? 0 Play Time 01:36:28 Cumulative 595.9 hours Start 2025.08.30 @ 22:44:30 End 2025.08.31 @ 00:39:19 Sessions 1 Manual Loads 0 Difficulty Rogue Special Mode None Game No. 299 Rogue 299 Adventurer 0 Explorer 0 Win Type - Total 7 Types 3/0/2/1/0/0/0/0/0/1 Lore% 87 Gallery% 79 Achievement% 69 Wizard Run 0 Options --------- Layout 2 ASCII 0 Keyboard 1 Movement Vi Keybinds 0 Fullscreen 1 Font 16/Tamsyn Map View 55x47 Zoom Use 0% Tactical HUD 1 Map Filters NONE Filters NONE Steam 0 RUN: a3b9ae89-9f81-4586-8cb1-bbc51812c975